bitfinex/quotes_SOLUSD_20241126
["timestamp","ask_amount","ask_price","bid_price","bid_amount"]
[1732618137374,5.0,228.7,228.66,45.85324184]
[1732618137571,5.0,228.72,228.69,45.85324184]
[1732618137772,5.0,228.72,228.71,45.85324184]
[1732618138985,5.0,228.7,228.69,45.85324184]
[1732618139862,5.0,228.68,228.67,45.85324184]
[1732618140080,10.0,228.68,228.67,45.85324184]
[1732618140659,10.0,228.61,228.58,45.85324184]
[1732618140881,4.3717,228.75,228.58,45.85324184]
[1732618140882,5.0,228.64,228.6,45.85324184]
[1732618141084,10.924,228.86,228.58,17.504905]
[1732618141085,5.0,228.61,228.58,17.504905]
[1732618141378,5.0,228.57,228.49,5.0]
[1732618141556,5.0,228.56,228.49,5.0]
[1732618141756,5.0,228.51,228.45,0.4904631]
[1732618142384,5.0,228.53,228.5,45.85324184]
[1732618142683,10.0,228.6,228.52,45.85324184]
[1732618142859,10.0,228.6,228.59,45.85324184]
[1732618143484,5.0,228.6,228.59,45.85324184]
[1732618143900,5.0,228.66,228.62,20.0]
[1732618144059,5.0,228.66,228.65,45.85324184]
[1732618144264,10.0,228.66,228.65,45.85324184]
[1732618144587,5.0,228.68,228.65,45.85324184]
[1732618144782,5.0,228.68,228.63,20.0]
[1732618144979,5.0,228.68,228.67,45.85324184]
[1732618145376,5.0,228.7,228.69,20.0]
[1732618145573,5.0,228.7,228.69,45.85324184]
[1732618145972,5.0,228.75,228.72,20.0]
[1732618145973,5.0,228.73,228.72,20.0]
[1732618146261,10.0,228.73,228.72,45.85324184]
[1732618146466,10.0,228.73,228.6,70.07494184]
[1732618146467,10.0,228.73,228.7,45.85324184]
[1732618146668,10.0,228.71,228.7,45.85324184]
[1732618146969,5.0,228.71,228.7,45.85324184]
[1732618147390,10.0,228.73,228.7,45.85324184]
[1732618147700,5.0,228.75,228.72,45.85324184]
[1732618147886,5.0,228.75,228.74,45.85324184]
[1732618148196,5.0,228.72,228.63,20.0]
[1732618148367,45.85324184,228.76,228.7,45.85324184]
[1732618148574,10.0,228.64,228.6,24.2217]
[1732618148884,5.0,228.57,228.5,6.3825]
[1732618149091,83.12,228.89,228.5,6.3825]
[1732618149092,5.0,228.62,228.5,6.3825]
[1732618149272,5.0,228.67,228.5,19.5025]
[1732618149468,5.0,228.64,228.5,19.5025]
[1732618149673,5.0,228.7,228.63,45.85324184]
[1732618149875,5.0,228.7,228.6,45.85324184]
[1732618149876,5.0,228.72,228.69,45.85324184]
[1732618150178,5.0,228.72,228.71,45.85324184]
[1732618150583,5.0,228.71,228.68,45.85324184]
[1732618150795,5.0,228.69,228.68,45.85324184]
[1732618150994,10.0,228.72,228.68,45.85324184]
[1732618153011,10.0,228.64,228.63,45.85324184]
[1732618153174,5.0,228.64,228.63,45.85324184]
[1732618155099,5.0,228.66,228.63,45.85324184]
[1732618155398,5.0,228.66,228.65,45.85324184]
[1732618156295,10.0,228.64,228.62,45.85324184]
[1732618156686,10.0,228.64,228.63,45.85324184]
[1732618157082,5.0,228.64,228.63,45.85324184]
[1732618157287,10.0,228.64,228.63,45.85324184]
[1732618157685,10.0,228.64,228.45,0.4904631]
[1732618157686,5.0,228.52,228.45,0.4904631]
[1732618157887,10.0,228.46,228.45,0.4904631]
[1732618158907,5.0,228.46,228.45,0.4904631]
[1732618159211,5.0,228.47,228.45,0.4904631]
[1732618159506,10.0,228.46,228.45,0.4904631]
[1732618159889,5.0,228.46,228.45,46.34370494]
[1732618160396,10.0,228.46,228.45,46.34370494]
[1732618160805,5.0,228.48,228.45,46.34370494]
[1732618160994,5.0,228.48,228.47,45.85324184]
[1732618161297,5.0,228.51,228.47,45.85324184]
[1732618161298,5.0,228.51,228.5,20.0]
[1732618161505,5.0,228.51,228.5,65.85324184]
[1732618161685,5.0,228.52,228.45,0.4904631]
[1732618162004,10.0,228.49,228.48,45.85324184]
[1732618162506,4.3734,228.66,228.48,45.85324184]
[1732618162507,10.0,228.51,228.48,45.85324184]
[1732618162691,5.0,228.51,228.5,45.85324184]
[1732618163001,10.0,228.51,228.5,45.85324184]
[1732618163206,5.0,228.51,228.5,45.85324184]
[1732618163895,5.0,228.59,228.53,20.0]
[1732618164095,5.0,228.59,228.58,45.85324184]
[1732618164298,5.0,228.62,228.58,45.85324184]
[1732618164487,5.0,228.59,228.51,20.0]
[1732618164687,5.0,228.6,228.51,20.0]
[1732618164890,10.0,228.6,228.59,45.85324184]
[1732618165591,5.0,228.6,228.59,45.85324184]
[1732618165794,5.0,228.64,228.61,20.0]
[1732618165994,10.0,228.71,228.66,20.0]
[1732618166196,10.0,228.71,228.7,45.85324184]
[1732618167284,10.0,228.71,228.61,18.1627]
[1732618167585,5.0,228.55,228.54,45.85324184]
[1732618168004,45.85324184,228.61,228.52,45.85324184]
[1732618168005,5.0,228.53,228.52,45.85324184]
[1732618168314,5.0,228.48,228.46,24.9193]
[1732618168609,5.0,228.51,228.45,0.4904631]
[1732618168610,10.0,228.46,228.45,0.4904631]
[1732618169483,60.85324184,228.46,228.45,0.4904631]
[1732618169806,10.0,228.46,228.45,0.4904631]
[1732618170683,9.95,228.46,228.45,46.34370494]
[1732618170905,4.95,228.46,228.45,46.34370494]
[1732618171113,5.0,228.47,228.45,46.34370494]
[1732618171293,4.95,228.46,228.45,46.34370494]
[1732618171495,4.95,228.48,228.45,46.34370494]
[1732618171702,4.95,228.48,228.47,91.70648368]
[1732618171993,4.95,228.52,228.5,20.0]
[1732618172204,4.95,228.52,228.51,45.85324184]
[1732618172405,4.95,228.57,228.55,20.0]
[1732618172718,4.95,228.62,228.56,69.63012584]
[1732618172915,4.95,228.65,228.64,20.0]
[1732618173089,4.95,228.65,228.64,65.85324184]
[1732618173289,4.95,228.7,228.65,23.776884]
[1732618173499,5.0,228.71,228.69,45.85324184]
[1732618173812,4.95,228.7,228.69,45.85324184]
[1732618174189,9.95,228.7,228.69,45.85324184]
[1732618174385,4.95,228.7,228.69,45.85324184]
[1732618174593,5.0,228.72,228.69,69.63012584]
[1732618174594,4.95,228.72,228.69,69.63012584]
[1732618174810,4.95,228.72,228.71,45.85324184]
[1732618175109,9.95,228.72,228.68,20.0]
[1732618175317,4.95,228.59,228.48,45.85324184]
[1732618175507,4.95,228.62,228.48,45.85324184]
[1732618175702,4.95,228.59,228.48,67.38883794]
[1732618176010,4.95,228.59,228.58,45.85324184]
[1732618176597,4.95,228.64,228.58,91.70648368]
[1732618176810,4.95,228.66,228.63,45.85324184]
[1732618177162,4.95,228.67,228.65,45.85324184]
[1732618177319,9.95,228.71,228.66,69.63012584]
[1732618177492,4.95,228.71,228.7,45.85324184]
[1732618179019,4.95,228.71,228.7,69.63012584]
[1732618179308,4.95,228.77,228.7,115.48336768]
[1732618179515,9.95,228.79,228.76,45.85324184]
[1732618179718,9.95,228.79,228.78,45.85324184]
[1732618180419,9.95,228.75,228.74,45.85324184]
[1732618180909,9.95,228.75,228.73,45.85324184]
[1732618181114,4.95,228.76,228.75,43.776884]
[1732618181416,4.95,228.76,228.75,89.63012584]
[1732618181623,4.95,228.78,228.76,23.776884]
[1732618181788,4.95,228.78,228.75,89.63012584]
[1732618181789,4.95,228.78,228.77,69.63012584]
[1732618182895,5.0,228.87,228.77,69.63012584]
[1732618183191,5.0,228.94,228.77,69.63012584]
[1732618183192,5.0,228.89,228.86,45.85324184]
[1732618183412,5.0,228.89,228.88,45.85324184]
[1732618184212,5.0,228.87,228.77,23.776884]
[1732618184411,5.0,228.87,228.86,45.85324184]
[1732618184613,5.0,228.89,228.86,45.85324184]
[1732618184913,5.0,228.89,228.88,45.85324184]
[1732618185116,5.0,228.91,228.88,45.85324184]
[1732618185419,5.0,228.95,228.9,65.85324184]
[1732618185720,5.0,228.93,228.9,20.0]
[1732618186015,16.3689,229.15,228.84,45.85324184]
[1732618186016,5.0,229.04,228.92,7.201]
[1732618186394,5.0,229.07,228.92,7.201]
[1732618186627,5.0,229.1,228.95,20.0]
[1732618186806,9.3644,229.13,228.95,20.0]
[1732618187013,45.85324184,229.08,229.0,45.85324184]
[1732618187200,5.0,229.07,229.0,45.85324184]
[1732618187521,5.0,229.05,228.98,45.85324184]
[1732618187814,45.85324184,229.04,228.96,45.85324184]
[1732618188117,45.85324184,229.08,229.0,45.85324184]
[1732618188606,5.0,229.07,229.0,45.85324184]
[1732618188925,45.85324184,229.08,228.92,7.201]
[1732618188926,45.85324184,229.02,228.94,45.85324184]
[1732618189305,5.0,229.04,228.96,45.85324184]
[1732618189306,50.85324184,229.04,228.96,45.85324184]
[1732618189502,5.0,228.97,228.82,7.0202]
[1732618189708,45.85324184,228.91,228.84,45.85324184]
[1732618190200,45.85324184,228.92,228.86,45.85324184]
[1732618190618,45.85324184,228.94,228.86,45.85324184]
[1732618190810,45.85324184,228.9,228.72,5.0]
[1732618191124,45.85324184,228.94,228.87,45.85324184]
[1732618191295,45.85324184,229.0,228.91,45.85324184]
[1732618192104,45.85324184,229.02,228.93,45.85324184]
[1732618193306,45.85324184,229.02,228.96,20.0]
[1732618193504,45.85324184,229.02,228.92,52.87344184]
[1732618193722,45.85324184,228.96,228.86,45.85324184]
[1732618193901,45.85324184,228.9,228.83,7.0202]
[1732618194099,45.85324184,228.86,228.81,17.3023]
[1732618194303,45.85324184,228.86,228.78,45.85324184]
[1732618194626,45.85324184,228.84,228.76,45.85324184]
[1732618195124,45.85324184,228.84,228.73,7.0202]
[1732618195125,45.85324184,228.8,228.73,7.0202]
[1732618195324,45.85324184,228.78,228.7,63.15554184]
[1732618195502,45.85324184,228.76,228.68,45.85324184]
[1732618195818,45.85324184,228.8,228.72,45.85324184]
[1732618196035,45.85324184,228.82,228.72,45.85324184]
[1732618196223,45.85324184,228.8,228.72,45.85324184]
[1732618196420,4.3689,228.89,228.64,12.0202]
[1732618196421,45.85324184,228.82,228.74,45.85324184]
[1732618196631,45.85324184,228.86,228.78,45.85324184]
[1732618196818,45.85324184,229.0,228.84,91.70648368]
[1732618197151,45.85324184,228.96,228.88,45.85324184]
[1732618197337,45.85324184,229.07,228.95,45.85324184]
[1732618197555,45.85324184,229.07,228.99,45.85324184]
[1732618197840,0.99355123,229.06,228.99,45.85324184]
[1732618198640,45.85324184,229.05,228.97,45.85324184]
[1732618198835,0.99355123,229.04,228.95,45.85324184]
[1732618199015,0.99355123,229.04,228.97,45.85324184]
[1732618199425,0.99355123,229.04,228.95,45.85324184]
[1732618199629,45.85324184,229.01,228.93,45.85324184]
[1732618199935,45.85324184,229.03,228.95,45.85324184]
[1732618200343,0.99355123,229.04,228.97,45.85324184]
[1732618200639,45.85324184,229.03,228.93,45.85324184]
[1732618200943,45.85324184,228.99,228.91,45.85324184]
[1732618201148,45.85324184,229.01,228.93,45.85324184]
[1732618201344,45.85324184,229.01,228.91,45.85324184]
[1732618201514,45.85324184,229.01,228.93,45.85324184]
[1732618201715,45.85324184,229.11,228.99,45.85324184]
[1732618201919,45.85324184,229.13,229.04,45.85324184]
[1732618202628,0.4904631,229.24,229.1,45.85324184]
[1732618202629,45.85324184,229.17,229.1,45.85324184]
[1732618202935,0.4904631,229.24,229.0,28.776884]
[1732618202936,45.85324184,229.19,229.12,45.85324184]
[1732618203123,45.85324184,229.19,229.1,45.85324184]
[1732618203329,45.85324184,229.13,229.05,45.85324184]
[1732618204045,45.85324184,229.19,229.11,45.85324184]
[1732618204342,50.85324184,229.12,229.01,0.65464232]
[1732618204516,45.85324184,229.06,228.97,47.93312685]
[1732618204723,4.3649,229.1,228.97,47.93312685]
[1732618204724,45.85324184,229.02,228.97,2.07988501]
[1732618204917,45.85324184,229.04,228.97,2.07988501]
[1732618205134,45.85324184,229.06,228.97,2.07988501]
[1732618205316,45.85324184,229.04,228.96,45.85324184]
[1732618205529,45.85324184,229.08,229.0,45.85324184]
[1732618205720,45.85324184,229.11,229.02,45.85324184]
[1732618205919,45.85324184,229.09,229.0,45.85324184]
[1732618206127,45.85324184,229.05,228.96,45.85324184]
[1732618206333,45.85324184,228.97,228.71,5.0]
[1732618206532,45.85324184,229.08,228.71,7.0202]
[1732618206533,15.2845,228.99,228.71,7.0202]
[1732618206837,5.0,228.92,228.71,7.0202]
[1732618207042,5.0,228.97,228.73,5.0]
[1732618207217,5.0,228.9,228.74,0.65539691]
[1732618207422,5.0,228.9,228.56,5.0]
[1732618207423,20.0,228.87,228.48,7.0202]
[1732618207730,45.85324184,228.64,228.55,45.85324184]
[1732618207919,45.85324184,228.71,228.61,45.85324184]
[1732618208127,45.85324184,228.78,228.68,45.85324184]
[1732618208328,5.0,228.84,228.7,45.85324184]
[1732618208532,45.85324184,228.8,228.7,45.85324184]
[1732618208739,45.85324184,228.78,228.7,45.85324184]
[1732618208951,45.85324184,228.8,228.7,45.85324184]
[1732618209137,45.85324184,228.84,228.76,45.85324184]
[1732618209454,45.85324184,228.84,228.74,45.85324184]
[1732618209616,45.85324184,228.84,228.76,45.85324184]
[1732618210144,45.85324184,228.89,228.8,45.85324184]
[1732618210747,45.85324184,228.85,228.75,45.85324184]
[1732618210919,45.85324184,228.81,228.71,45.85324184]
[1732618211120,45.85324184,228.81,228.74,20.0]
[1732618211342,45.85324184,228.81,228.73,45.85324184]
[1732618211525,45.85324184,228.75,228.62,17.495447]
[1732618211849,10.0,228.81,228.64,45.85324184]
[1732618211850,45.85324184,228.73,228.64,45.85324184]
[1732618212145,45.85324184,228.69,228.6,45.85324184]
[1732618212341,45.85324184,228.71,228.62,45.85324184]
[1732618212526,45.85324184,228.73,228.64,45.85324184]
[1732618213553,45.85324184,228.75,228.66,45.85324184]
[1732618213844,45.85324184,228.75,228.64,45.85324184]
[1732618214224,45.85324184,228.81,228.71,45.85324184]
[1732618214545,45.85324184,228.81,228.61,5.0]
[1732618214546,45.85324184,228.81,228.73,45.85324184]
[1732618215149,45.85324184,228.79,228.69,45.85324184]
[1732618215349,45.85324184,228.84,228.58,17.49941]
[1732618215350,45.85324184,228.73,228.65,45.85324184]
[1732618215544,45.85324184,228.75,228.65,45.85324184]
[1732618215731,45.85324184,228.73,228.65,45.85324184]
[1732618215935,45.85324184,228.71,228.63,45.85324184]
[1732618216125,45.85324184,228.78,228.7,45.85324184]
[1732618216643,45.85324184,228.73,228.65,45.85324184]
[1732618217252,45.85324184,228.73,228.68,20.0]
[1732618217753,45.85324184,228.82,228.74,20.0]
[1732618217931,10.9183,228.98,228.77,45.85324184]
[1732618217932,45.85324184,228.84,228.77,45.85324184]
[1732618218130,45.85324184,228.86,228.77,45.85324184]
[1732618218432,45.85324184,228.86,228.8,20.0]
[1732618218627,45.85324184,228.84,228.75,45.85324184]
[1732618218841,45.85324184,228.77,228.71,6.8793]
[1732618219150,45.85324184,228.73,228.65,45.85324184]
[1732618219629,45.85324184,228.75,228.65,45.85324184]
[1732618220044,45.85324184,228.75,228.67,45.85324184]
[1732618220330,45.85324184,228.79,228.72,45.85324184]
[1732618220549,45.85324184,228.81,228.72,45.85324184]
[1732618221247,5.0,228.95,228.77,20.0]
[1732618221248,45.85324184,228.83,228.77,20.0]
[1732618222060,45.85324184,228.87,228.81,20.0]
[1732618222350,45.85324184,228.87,228.83,20.0]
[1732618222726,45.85324184,228.91,228.84,45.85324184]
[1732618222960,45.85324184,228.93,228.87,20.0]
[1732618223251,45.85324184,228.89,228.82,45.85324184]
[1732618223645,45.85324184,228.87,228.83,20.0]
[1732618223848,45.85324184,228.85,228.78,45.85324184]
[1732618224029,45.85324184,228.81,228.74,45.85324184]
[1732618224235,45.85324184,228.79,228.7,45.85324184]
[1732618225248,45.85324184,228.71,228.62,53.41624184]
[1732618225449,45.85324184,228.64,228.52,45.85324184]
[1732618225752,45.85324184,228.57,228.5,7.563]
[1732618226254,45.85324184,228.61,228.52,45.85324184]
[1732618226438,45.85324184,228.63,228.54,45.85324184]
[1732618226632,45.85324184,228.61,228.52,45.85324184]
[1732618226828,45.85324184,228.61,228.54,45.85324184]
[1732618227047,45.85324184,228.63,228.54,45.85324184]
[1732618227261,45.85324184,228.68,228.6,45.85324184]
[1732618227836,45.85324184,228.71,228.62,45.85324184]
[1732618228156,45.85324184,228.75,228.66,45.85324184]
[1732618228356,45.85324184,228.75,228.68,45.85324184]
[1732618228661,45.85324184,228.79,228.7,45.85324184]
[1732618228954,45.85324184,228.81,228.73,65.85324184]
[1732618229159,45.85324184,228.81,228.73,45.85324184]
[1732618229349,45.85324184,228.83,228.73,45.85324184]
[1732618229545,45.85324184,228.83,228.75,45.85324184]
[1732618229745,45.85324184,228.79,228.71,45.85324184]
[1732618230061,45.85324184,228.75,228.68,17.4081]
[1732618230235,45.85324184,228.71,228.63,45.85324184]
[1732618230841,45.85324184,228.73,228.65,45.85324184]
[1732618231036,45.85324184,228.75,228.67,45.85324184]
[1732618231251,45.85324184,228.77,228.69,45.85324184]
[1732618231765,45.85324184,228.81,228.73,45.85324184]
[1732618232639,45.85324184,228.81,228.72,20.0]
[1732618232839,45.85324184,228.77,228.72,20.0]
[1732618233060,45.85324184,228.79,228.72,20.0]
[1732618233452,9.3687,228.9,228.69,45.85324184]
[1732618233453,45.85324184,228.77,228.69,45.85324184]
[1732618233772,45.85324184,228.75,228.67,45.85324184]
[1732618234258,45.85324184,228.73,228.65,45.85324184]
[1732618234436,45.85324184,228.71,228.63,45.85324184]
[1732618235041,45.85324184,228.73,228.63,45.85324184]
[1732618235243,45.85324184,228.71,228.61,45.85324184]
[1732618235655,45.85324184,228.69,228.61,45.85324184]
[1732618236640,45.85324184,228.69,228.58,18.4732]
[1732618236641,45.85324184,228.73,228.63,45.85324184]
[1732618236838,45.85324184,228.73,228.65,45.85324184]
[1732618237196,45.85324184,228.71,228.61,45.85324184]
[1732618237460,45.85324184,228.75,228.67,45.85324184]
[1732618237661,45.85324184,228.77,228.69,45.85324184]
[1732618237968,45.85324184,228.75,228.67,45.85324184]
[1732618238347,45.85324184,228.77,228.69,45.85324184]
[1732618238553,45.85324184,228.79,228.71,45.85324184]
[1732618239756,45.85324184,228.77,228.67,45.85324184]
[1732618239953,45.85324184,228.77,228.69,45.85324184]
[1732618240146,45.85324184,228.79,228.71,45.85324184]
[1732618240658,45.85324184,228.81,228.73,45.85324184]
[1732618240843,45.85324184,228.75,228.7,20.0]
[1732618241041,45.85324184,228.79,228.71,45.85324184]
[1732618241248,45.85324184,228.81,228.73,45.85324184]
[1732618241774,16.246,229.01,228.73,23.776884]
[1732618241944,45.85324184,228.91,228.83,45.85324184]
[1732618242143,45.85324184,228.91,228.76,20.0]
[1732618242144,45.85324184,228.89,228.81,45.85324184]
[1732618242544,45.85324184,228.83,228.76,20.0]
[1732618242847,45.85324184,228.81,228.76,20.0]
[1732618243045,45.85324184,228.81,228.76,17.35563691]
[1732618243654,45.85324184,228.79,228.72,6.9986]
[1732618243855,45.85324184,228.81,228.73,45.85324184]
[1732618244447,45.85324184,228.85,228.77,45.85324184]
[1732618244655,45.85324184,228.87,228.79,45.85324184]
[1732618244873,45.85324184,228.87,228.72,52.85184184]
[1732618244874,45.85324184,228.85,228.77,45.85324184]
[1732618245163,50.22084184,228.96,228.72,6.9986]
[1732618245164,45.85324184,228.83,228.75,45.85324184]
[1732618245664,5.0,228.93,228.72,6.9986]
[1732618245665,45.85324184,228.79,228.72,6.9986]
[1732618245855,45.85324184,228.85,228.77,45.85324184]
[1732618246161,45.85324184,228.83,228.75,45.85324184]
[1732618246364,45.85324184,228.79,228.72,6.9986]
[1732618248679,45.85324184,228.75,228.65,45.85324184]
[1732618248881,45.85324184,228.75,228.63,7.4418]
[1732618248882,45.85324184,228.75,228.67,45.85324184]
[1732618249174,45.85324184,228.77,228.69,45.85324184]
[1732618249464,45.85324184,228.77,228.63,7.4418]
[1732618249664,45.85324184,228.72,228.64,45.85324184]
[1732618249875,5.0,228.83,228.66,45.85324184]
[1732618249876,45.85324184,228.74,228.66,45.85324184]
[1732618250849,45.85324184,228.76,228.66,45.85324184]
[1732618251058,45.85324184,228.78,228.7,45.85324184]
[1732618251267,45.85324184,228.76,228.68,45.85324184]
[1732618251474,45.85324184,228.76,228.66,65.85324184]
[1732618251647,45.85324184,228.76,228.68,45.85324184]
[1732618251848,45.85324184,228.78,228.7,45.85324184]
[1732618252063,11.2348,228.89,228.66,20.0]
[1732618252264,45.85324184,228.76,228.68,45.85324184]
[1732618252467,45.85324184,228.78,228.68,45.85324184]
[1732618252970,45.85324184,228.8,228.72,45.85324184]
[1732618253177,45.85324184,228.78,228.68,45.85324184]
[1732618253351,45.85324184,228.78,228.7,45.85324184]
[1732618253546,45.85324184,228.76,228.68,45.85324184]
[1732618254870,45.85324184,228.74,228.66,65.85324184]
[1732618256869,45.85324184,228.78,228.68,45.85324184]
[1732618257078,45.85324184,228.76,228.68,45.85324184]
[1732618257657,45.85324184,228.74,228.66,20.0]
[1732618257855,45.85324184,228.74,228.67,20.0]
[1732618258178,45.85324184,228.69,228.58,64.32644184]
[1732618258357,45.85324184,228.72,228.58,64.32644184]
[1732618258358,45.85324184,228.66,228.58,64.32644184]
[1732618258552,45.85324184,228.68,228.58,64.32644184]
[1732618258879,45.85324184,228.66,228.58,18.4732]
[1732618259358,45.85324184,228.66,228.58,64.32644184]
[1732618259554,45.85324184,228.64,228.54,45.85324184]
[1732618260279,15.2971,228.8,228.53,7.4418]
[1732618260280,45.85324184,228.66,228.58,45.85324184]
[1732618260656,45.85324184,228.66,228.56,45.85324184]
[1732618260855,45.85324184,228.66,228.53,7.4418]
[1732618260856,45.85324184,228.66,228.58,45.85324184]
[1732618261453,45.85324184,228.6,228.5,45.85324184]
[1732618261668,45.85324184,228.56,228.48,63.28744184]
[1732618262672,45.85324184,228.58,228.5,45.85324184]
[1732618263062,45.85324184,228.6,228.52,45.85324184]
[1732618263381,45.85324184,228.62,228.54,45.85324184]
[1732618263556,45.85324184,228.66,228.58,45.85324184]
[1732618263762,45.85324184,228.72,228.63,45.85324184]
[1732618264085,45.85324184,228.74,228.65,45.85324184]
[1732618264289,45.85324184,228.7,228.63,45.85324184]
[1732618264454,45.85324184,228.7,228.64,20.0]
[1732618264769,45.85324184,228.72,228.64,20.0]
[1732618265476,45.85324184,228.76,228.67,45.85324184]
[1732618265655,45.85324184,228.84,228.69,45.85324184]
[1732618265656,45.85324184,228.77,228.69,45.85324184]
[1732618265855,45.85324184,228.72,228.64,45.85324184]
[1732618266056,45.85324184,228.66,228.58,45.85324184]
[1732618266264,45.85324184,228.72,228.5,45.85324184]
[1732618266265,45.85324184,228.6,228.5,45.85324184]
[1732618266569,45.85324184,228.56,228.48,17.4342]
[1732618266770,45.85324184,228.56,228.49,45.85324184]
[1732618267197,45.85324184,228.58,228.51,45.85324184]
[1732618267480,45.85324184,228.58,228.48,17.4342]
[1732618267481,45.85324184,228.58,228.49,45.85324184]
[1732618268283,45.85324184,228.56,228.48,17.4342]
[1732618268455,45.85324184,228.56,228.49,45.85324184]
[1732618268856,45.85324184,228.56,228.47,45.85324184]
[1732618269058,45.85324184,228.54,228.45,53.78550494]
[1732618269277,45.85324184,228.6,228.45,46.34370494]
[1732618269278,45.85324184,228.52,228.45,46.34370494]
[1732618269488,45.85324184,228.54,228.45,46.34370494]
[1732618269678,45.85324184,228.52,228.45,46.34370494]
[1732618270070,45.85324184,228.53,228.45,46.34370494]
[1732618270501,45.85324184,228.52,228.46,45.85324184]
[1732618270959,45.85324184,228.54,228.46,45.85324184]
[1732618271594,45.85324184,228.53,228.46,45.85324184]
[1732618271887,45.85324184,228.53,228.45,46.34370494]
[1732618272077,45.85324184,228.55,228.47,45.85324184]
[1732618272382,45.85324184,228.53,228.45,46.34370494]
[1732618272688,45.85324184,228.52,228.45,46.34370494]
[1732618272978,45.85324184,228.53,228.45,46.34370494]
[1732618273180,45.85324184,228.56,228.48,45.85324184]
[1732618273485,45.85324184,228.57,228.49,45.85324184]
[1732618273858,45.85324184,228.59,228.53,45.85324184]
[1732618274066,45.85324184,228.59,228.52,45.85324184]
[1732618274476,45.85324184,228.59,228.45,0.4904631]
[1732618274477,45.85324184,228.58,228.51,45.85324184]
[1732618274709,45.85324184,228.57,228.5,45.85324184]
[1732618274870,45.85324184,228.54,228.47,45.85324184]
[1732618275180,45.85324184,228.57,228.5,45.85324184]
[1732618275685,10.0,228.66,228.45,0.4904631]
[1732618275879,45.85324184,228.55,228.47,45.85324184]
[1732618276586,45.85324184,228.55,228.48,45.85324184]
[1732618277090,45.85324184,228.55,228.47,45.85324184]
[1732618277294,45.85324184,228.55,228.45,0.4904631]
[1732618277295,45.85324184,228.52,228.45,46.34370494]
[1732618277583,45.85324184,228.53,228.46,45.85324184]
[1732618278168,45.85324184,228.49,228.45,0.4904631]
[1732618278474,45.85324184,228.47,228.45,0.4904631]
[1732618278686,45.85324184,228.46,228.45,0.4904631]
[1732618279572,50.23034184,228.46,228.45,0.4904631]
[1732618280292,45.85324184,228.46,228.45,0.4904631]
[1732618280965,50.23034184,228.46,228.45,0.4904631]
[1732618281378,74.00722584,228.46,228.45,0.4904631]
[1732618281693,45.85324184,228.46,228.45,0.4904631]
[1732618282293,15.3206,228.45,228.22,2.67500615]
[1732618282468,5.0,228.43,228.23,0.65697163]
[1732618282667,45.85324184,228.36,228.28,45.85324184]
[1732618282978,5.0,228.47,228.3,45.85324184]
[1732618283180,45.85324184,228.38,228.3,45.85324184]
[1732618283481,45.85324184,228.39,228.31,45.85324184]
[1732618283690,45.85324184,228.38,228.31,45.85324184]
[1732618283876,45.85324184,228.38,228.3,45.85324184]
[1732618284079,14.3771,228.46,228.24,45.85324184]
[1732618284080,5.0,228.45,228.31,45.85324184]
[1732618284285,45.85324184,228.37,228.31,1.762896]
[1732618284482,45.85324184,228.39,228.31,47.61613784]
[1732618284672,45.85324184,228.41,228.33,45.85324184]
[1732618284873,45.85324184,228.48,228.35,45.85324184]
[1732618285075,45.85324184,228.45,228.37,45.85324184]
[1732618285280,5.0,228.58,228.42,45.85324184]
[1732618285465,45.85324184,228.5,228.42,45.85324184]
[1732618285682,45.85324184,228.48,228.4,45.85324184]
[1732618285889,45.85324184,228.46,228.39,7.3065]
[1732618286099,45.85324184,228.6,228.43,65.85324184]
[1732618286100,45.85324184,228.51,228.43,65.85324184]
[1732618286274,45.85324184,228.53,228.45,45.85324184]
[1732618286470,45.85324184,228.55,228.47,45.85324184]
[1732618286697,45.85324184,228.53,228.45,45.85324184]
[1732618286883,45.85324184,228.61,228.52,45.85324184]
[1732618287090,45.85324184,228.65,228.57,45.85324184]
[1732618287277,45.85324184,228.71,228.63,45.85324184]
[1732618287477,17.506582,228.84,228.65,45.85324184]
[1732618287704,45.85324184,228.74,228.66,45.85324184]
[1732618287979,45.85324184,228.68,228.6,20.0]
[1732618288197,4.37,228.84,228.6,20.0]
[1732618288198,45.85324184,228.64,228.6,20.0]
[1732618288494,45.85324184,228.7,228.62,45.85324184]
[1732618288678,45.85324184,228.66,228.61,20.0]